bitfinex-derivatives/quotes_BTCF0:USTF0_20251023
["timestamp","ask_amount","ask_price","bid_price","bid_amount"]
[1761234884601,0.73933618,110040.0,110030.0,0.05945]
[1761234887007,0.73933618,110040.0,110030.0,0.20945]
[1761234887212,0.41805618,110040.0,110030.0,0.33945]
[1761234887406,0.73933618,110040.0,110030.0,0.05945]
[1761234887605,0.73933618,110040.0,110030.0,0.20945]
[1761234887908,0.73933618,110040.0,110030.0,0.05945]
[1761234888306,0.4121379,110040.0,110030.0,0.22945]
[1761234888507,0.73933618,110040.0,110030.0,0.3203162]
[1761234888910,0.73933618,110040.0,110030.0,0.1503162]
[1761234889115,0.73933618,110040.0,110030.0,0.3203162]
[1761234889413,0.73933618,110040.0,110030.0,0.2903162]
[1761234889612,0.73933618,110040.0,110030.0,0.1503162]
[1761234889806,0.73933618,110040.0,110030.0,0.4903162]
[1761234890107,0.57573704,110040.0,110030.0,0.4903162]
[1761234890313,0.25445124,110050.0,110040.0,0.1487079]
[1761234890509,0.60835491,110050.0,110040.0,0.2987079]
[1761234891613,0.28707491,110050.0,110040.0,0.4697079]
[1761234891816,0.28707491,110050.0,110040.0,0.2897079]
[1761234892008,0.28707491,110050.0,110040.0,0.2997079]
[1761234892309,0.19622281,110050.0,110040.0,0.1497079]
[1761234892507,0.44475067,110060.0,110050.0,0.1353596]
[1761234892707,0.33620804,110060.0,110050.0,0.1486996]
[1761234894110,0.28706981,110060.0,110050.0,0.1486996]
[1761234894313,0.25444614,110060.0,110050.0,0.1486996]
[1761234894708,0.090847,110060.0,110050.0,0.1486996]
[1761234894907,0.25444614,110060.0,110050.0,0.1486996]
[1761234895714,0.28706981,110060.0,110050.0,0.1486996]
[1761234896013,0.25444614,110060.0,110050.0,0.1486996]
[1761234896917,0.28706981,110060.0,110050.0,0.1486998]
[1761234897910,0.45066895,110060.0,110050.0,0.01334]
[1761234898105,0.45066895,110060.0,110050.0,0.03512]
[1761234898516,0.45066895,110060.0,110050.0,0.01334]
[1761234899021,0.0908497,110050.0,110040.0,0.1482238]
[1761234899216,0.73932798,110050.0,110040.0,0.1482238]
[1761234900311,0.78195165,110050.0,110040.0,0.148228]
[1761234900518,0.77195165,110050.0,110040.0,0.05837]
[1761234900916,0.77195165,110050.0,110040.0,0.01434]
[1761234901211,0.82108988,110050.0,110040.0,0.1492279]
[1761234901417,0.60835251,110050.0,110040.0,0.3192279]
[1761234901817,0.60835251,110050.0,110040.0,0.1492279]
[1761234902015,0.44475337,110050.0,110040.0,0.1492279]
[1761234902218,0.60835251,110050.0,110040.0,0.1492279]
[1761234902519,0.60835251,110050.0,110040.0,0.3192279]
[1761234903111,0.57572884,110050.0,110040.0,0.3192279]
[1761234903311,0.25444884,110050.0,110040.0,0.3192279]
[1761234904220,0.16359914,110050.0,110040.0,0.3192279]
[1761234905010,0.25444884,110050.0,110040.0,0.3192279]
[1761234905419,0.16359914,110050.0,110040.0,0.3192279]
[1761234910325,0.16359914,110050.0,110040.0,0.6404679]
[1761234913024,0.03262367,110070.0,110060.0,0.1478215]
[1761234913220,0.24536104,110080.0,110070.0,0.0908332]
[1761234913424,0.12344667,110090.0,110080.0,0.147805]
[1761234913627,0.12344667,110090.0,110080.0,0.307805]
[1761234913829,0.60827451,110100.0,110080.0,0.457805]
[1761234914020,0.95827451,110100.0,110090.0,0.1477967]
[1761234914327,0.75827451,110100.0,110090.0,0.1477967]
[1761234914723,0.92187365,110100.0,110090.0,0.1477967]
[1761234915120,0.88924998,110100.0,110090.0,0.1477967]
[1761234916024,0.63483914,110100.0,110090.0,0.4477967]
[1761234916331,0.74024688,110100.0,110090.0,0.4477967]
[1761234916630,0.64943828,110100.0,110090.0,0.4477967]
[1761234916834,0.16459914,110100.0,110090.0,0.4477967]
[1761234917233,0.32819828,110100.0,110090.0,0.4477967]
[1761234917429,0.32819828,110100.0,110090.0,0.1477967]
[1761234917630,0.001,110100.0,110090.0,0.1477967]
[1761234917935,0.16459914,110100.0,110090.0,0.4277967]
[1761234918421,0.41900678,110100.0,110090.0,0.4277967]
[1761234918616,0.32819828,110100.0,110090.0,0.1477967]
[1761234918925,0.32781952,110100.0,110090.0,0.4877967]
[1761234919924,0.41862802,110100.0,110090.0,0.1477967]
[1761234920128,0.58203778,110100.0,110090.0,0.1477967]
[1761234925742,0.58203778,110100.0,110090.0,0.4677967]
[1761234925941,0.41862802,110100.0,110090.0,0.4677967]
[1761234926248,0.32781952,110100.0,110090.0,0.4677967]
[1761234927339,0.41862802,110100.0,110090.0,0.4677967]
[1761234927739,0.32781952,110100.0,110090.0,0.4677967]
[1761234928252,0.32681952,110100.0,110090.0,0.4677967]
[1761234928441,0.32781952,110100.0,110090.0,0.4677967]
[1761234929243,0.32681952,110100.0,110090.0,0.4677967]
[1761234930142,0.41862802,110100.0,110090.0,0.4677967]
[1761234930544,0.32781952,110100.0,110090.0,0.4677967]
[1761234931243,0.001,110100.0,110090.0,0.4677967]
[1761234931438,0.32781952,110100.0,110090.0,0.4677967]
[1761234931642,0.32681952,110100.0,110090.0,0.4677967]
[1761234932250,0.58103768,110100.0,110090.0,0.05698]
[1761234932451,0.58203768,110100.0,110090.0,0.05698]
[1761234932646,0.58203768,110100.0,110090.0,0.37806]
[1761234933051,0.58203768,110100.0,110090.0,0.4688767]
[1761234934456,0.58103768,110100.0,110090.0,0.4688767]
[1761234934653,0.58203768,110100.0,110090.0,0.4688767]
[1761234936956,0.58203768,110100.0,110090.0,0.1477967]
[1761234938063,0.001,110100.0,110090.0,0.4877967]
[1761234938249,0.32781952,110100.0,110090.0,0.4877967]
[1761234939055,0.32681952,110100.0,110090.0,0.4877967]
[1761234939264,0.32781952,110100.0,110090.0,0.4877967]
[1761234940063,0.001,110100.0,110090.0,0.4877967]
[1761234940254,0.32781952,110100.0,110090.0,0.4877967]
[1761234940962,0.32681952,110100.0,110090.0,0.4877967]
[1761234941160,0.32681952,110100.0,110090.0,0.8088367]
[1761234941362,0.41762792,110100.0,110090.0,0.1477967]
[1761234941560,0.58103768,110100.0,110090.0,0.4688367]
[1761234942262,0.58203768,110100.0,110090.0,0.4688367]
[1761234942865,0.58203768,110100.0,110090.0,0.1477967]
[1761234943064,0.41862792,110100.0,110090.0,0.1477967]
[1761234943260,0.32781952,110100.0,110090.0,0.4477967]
[1761234943467,0.32781952,110100.0,110090.0,0.1477967]
[1761234943662,0.32781952,110100.0,110090.0,0.3077967]
[1761234943861,0.32781952,110100.0,110090.0,0.4777967]
[1761234944060,0.3523237,110100.0,110090.0,0.4777967]
[1761234944262,0.4431322,110100.0,110090.0,0.4777967]
[1761234944462,0.4431322,110100.0,110090.0,0.1477967]
[1761234945071,0.4431322,110100.0,110090.0,0.4577967]
[1761234945667,0.11631268,110100.0,110090.0,0.4577967]
[1761234945874,0.3523237,110100.0,110090.0,0.49031679]
[1761234947074,0.3513237,110100.0,110090.0,0.49031679]
[1761234947272,0.3523237,110100.0,110090.0,0.49031679]
[1761234948073,0.3513237,110100.0,110090.0,0.49031679]
[1761234950176,0.3523237,110100.0,110090.0,0.49031679]
[1761234950570,0.4431323,110100.0,110090.0,0.49031679]
[1761234951177,0.4421323,110100.0,110090.0,0.49031679]
[1761234952480,0.3513237,110100.0,110090.0,0.49031679]
[1761234953278,0.4431322,110100.0,110090.0,0.49031679]
[1761234956190,0.96016563,110100.0,110090.0,0.05698]
[1761234956392,0.93566145,110100.0,110090.0,0.05698]
[1761234956891,0.98479968,110100.0,110090.0,0.03473]
[1761234957092,0.98479968,110100.0,110090.0,0.1479868]
[1761234957491,0.98479968,110100.0,110090.0,0.05717]
[1761234957694,0.95217601,110100.0,110090.0,0.05717]
[1761234959893,0.95217601,110100.0,110080.0,0.05659]
[1761234959894,1.39217601,110100.0,110080.0,0.05659]
[1761234960095,0.54739287,110090.0,110080.0,0.05659]
[1761234960295,0.57203242,110090.0,110080.0,0.05659]
[1761234960593,0.57203242,110090.0,110070.0,0.05659]
[1761234960594,1.06203242,110090.0,110070.0,0.05659]
[1761234960798,0.93471929,110080.0,110070.0,0.05659]
[1761234960994,0.93471929,110080.0,110070.0,0.03415]
[1761234960995,0.97471929,110080.0,110070.0,0.03415]
[1761234961302,1.02385752,110080.0,110070.0,0.03415]
[1761234961603,0.97471929,110080.0,110070.0,0.05659]
[1761234962191,0.0908415,110060.0,110050.0,0.15734344]
[1761234962398,0.0908415,110060.0,110050.0,0.49734344]
[1761234962399,0.32681952,110060.0,110050.0,0.49734344]
[1761234963095,0.41766102,110060.0,110050.0,0.49734344]
[1761234963285,0.58107078,110060.0,110050.0,0.4881234]
[1761234963486,0.90207078,110060.0,110050.0,0.05728]
[1761234964796,0.93654619,110060.0,110050.0,0.05728]
[1761234965297,0.91207078,110060.0,110050.0,0.05728]
[1761234965800,0.0908415,110060.0,110050.0,0.1481298]
[1761234965988,0.41766102,110060.0,110050.0,0.1481298]
[1761234966193,0.02447541,110070.0,110060.0,0.1481215]
[1761234966394,0.02447541,110070.0,110060.0,0.92257126]
[1761234966603,0.16340976,110080.0,110070.0,0.1481132]
[1761234966806,0.25423476,110080.0,110070.0,0.05728]
[1761234966999,0.25423476,110080.0,110070.0,0.1481132]
[1761234967702,0.41764452,110080.0,110070.0,0.1481132]
[1761234968105,0.58105428,110080.0,110070.0,0.05728]
[1761234968306,0.58205428,110080.0,110070.0,0.1481131]
[1761234968502,0.41864452,110080.0,110070.0,0.1481131]
[1761234968696,0.58205428,110080.0,110070.0,0.1481131]
[1761234968903,0.73968452,110080.0,110070.0,0.1481131]
[1761234969707,0.90309428,110080.0,110070.0,0.1481131]
[1761234970008,0.90309428,110080.0,110060.0,0.05728]
[1761234970009,0.0908331,110070.0,110060.0,0.05728]
[1761234970200,0.58106238,110070.0,110060.0,0.05728]
[1761234970398,0.41765262,110070.0,110060.0,0.1481213]
[1761234970908,0.41765262,110070.0,110060.0,0.05728]
[1761234972102,0.0908331,110070.0,110060.0,0.2981213]
[1761234972305,0.41765262,110070.0,110060.0,0.1256813]
[1761234972607,0.41765262,110070.0,110060.0,0.1481213]
[1761234972802,0.29521578,110070.0,110060.0,0.1481213]
[1761234973304,0.20438268,110070.0,110060.0,0.3081213]
[1761234973509,0.52642268,110070.0,110060.0,0.3081213]
[1761234974209,0.20538268,110070.0,110060.0,0.3081213]
[1761234974404,0.29621568,110070.0,110060.0,0.3081213]
[1761234974911,0.20538268,110070.0,110060.0,0.3081213]
[1761234975908,0.29621568,110070.0,110060.0,0.3081213]
[1761234976109,0.20538268,110070.0,110060.0,0.3081213]
[1761234976409,0.29621568,110070.0,110060.0,0.3081213]
[1761234977612,0.29521568,110070.0,110060.0,0.3081213]
[1761234977808,0.29621568,110070.0,110060.0,0.3081213]
[1761234978205,0.20538268,110070.0,110060.0,0.3081213]
[1761234979011,0.29621568,110070.0,110060.0,0.3081213]
[1761234979206,0.20538268,110070.0,110060.0,0.1481213]
[1761234979403,0.20538268,110070.0,110060.0,0.4381213]
[1761234979802,0.0918331,110070.0,110060.0,0.4381213]
[1761234980108,0.29621578,110070.0,110060.0,0.4381213]
[1761234980613,0.0918331,110070.0,110060.0,0.4381213]
[1761234980807,0.43438629,110070.0,110060.0,0.4381213]
[1761234981201,0.34255319,110070.0,110060.0,0.4381213]
[1761234981406,0.778938,110080.0,110070.0,0.1481131]
[1761234981711,0.75446259,110080.0,110070.0,0.3181131]
[1761234982114,0.75446259,110080.0,110070.0,0.1481131]
[1761234982309,0.75446259,110080.0,110070.0,0.3081131]
[1761234982509,0.43338259,110080.0,110070.0,0.1481131]
[1761234982705,0.43338259,110080.0,110070.0,0.2981131]
[1761234982706,0.0908294,110080.0,110070.0,0.2981131]
[1761234983013,0.0908294,110080.0,110070.0,0.1481131]
[1761234983014,0.0918294,110080.0,110070.0,0.1481131]
[1761234983412,0.43438259,110080.0,110070.0,0.3081131]
[1761234983604,0.43438259,110080.0,110070.0,0.1481131]
[1761234983803,0.43438259,110080.0,110070.0,0.2981131]
[1761234984015,0.43438259,110080.0,110070.0,0.1481131]
[1761234985219,0.34355319,110080.0,110070.0,0.3081131]
[1761234985409,0.34355319,110080.0,110070.0,0.1481131]
[1761234985915,0.34355319,110080.0,110070.0,0.3181131]
[1761234986116,0.001,110080.0,110070.0,0.3181131]
[1761234986416,0.34355319,110080.0,110070.0,0.1481131]
[1761234986722,0.34355319,110080.0,110070.0,0.3081131]
[1761234986906,0.34355319,110080.0,110070.0,0.1481131]
[1761234987111,0.001,110080.0,110070.0,0.1481131]
[1761234987311,0.34355319,110080.0,110070.0,0.1481131]
[1761234987613,0.34255319,110080.0,110070.0,0.1481131]
[1761234990315,0.7788882,110090.0,110080.0,0.1465049]
[1761234991822,0.7788882,110090.0,110080.0,0.05568]
[1761234992122,0.7788882,110090.0,110080.0,0.1465049]
[1761234992423,0.7798882,110090.0,110080.0,0.1465049]
[1761234992722,0.60079511,110090.0,110080.0,0.1465049]
[1761234996420,0.63346002,110090.0,110080.0,0.1465049]
[1761234996824,0.60079511,110090.0,110080.0,0.1465049]
[1761234997024,0.63346002,110090.0,110080.0,0.1465049]
[1761234997325,0.60079511,110090.0,110080.0,0.1465049]
[1761235002426,0.0908248,110080.0,110070.0,0.1044673]
[1761235002625,0.417745,110080.0,110070.0,0.1468873]
[1761235003029,0.44222041,110080.0,110070.0,0.1468873]
[1761235004030,0.27876031,110080.0,110070.0,0.1468873]
[1761235004235,0.18793551,110080.0,110070.0,0.4868873]
[1761235004428,0.05814032,110090.0,110080.0,0.1253748]
[1761235004626,0.22060042,110100.0,110090.0,0.1464966]
[1761235004826,0.02447541,110100.0,110090.0,0.4664966]
[1761235005220,0.18793551,110100.0,110090.0,0.4664966]
[1761235005430,0.18793551,110100.0,110090.0,0.7874966]
[1761235007737,0.1634601,110100.0,110090.0,0.82001669]
[1761235008436,0.4177285,110100.0,110090.0,0.08820009]
[1761235008634,0.4177285,110100.0,110090.0,0.05568]
[1761235008933,0.4177285,110100.0,110090.0,0.1464965]
[1761235009130,0.4177285,110100.0,110090.0,0.05568]
[1761235009324,0.4177285,110100.0,110090.0,0.01326]
[1761235009525,0.4177285,110100.0,110090.0,0.03455]
[1761235009837,0.44320391,110100.0,110090.0,0.03455]
[1761235010131,0.44320391,110100.0,110090.0,0.1464966]
[1761235010840,0.44320391,110100.0,110090.0,0.05568]
[1761235010841,0.45872125,110100.0,110090.0,0.05568]
[1761235011030,0.45872125,110100.0,110090.0,0.1464966]
[1761235012933,0.45872125,110100.0,110090.0,0.05568]
[1761235013138,0.45872125,110100.0,110090.0,0.1464966]
[1761235015942,0.45872125,110100.0,110090.0,0.4764966]
[1761235016744,0.02547541,110100.0,110090.0,0.4764966]
[1761235017141,0.001,110100.0,110090.0,0.4764966]
[1761235017848,0.81614356,110110.0,110100.0,0.1474583]
[1761235019046,0.81714356,110110.0,110100.0,0.1474583]
[1761235019252,0.47470602,110110.0,110100.0,0.1474583]
[1761235019451,0.46351865,110110.0,110100.0,0.1474583]
[1761235020651,0.46351865,110110.0,110100.0,0.15676222]
[1761235021754,0.46251865,110110.0,110100.0,0.15676222]
[1761235021948,0.46351865,110110.0,110100.0,0.15676222]
[1761235022647,0.46351865,110110.0,110100.0,0.05665]
[1761235022952,0.46351865,110110.0,110100.0,0.1474583]
[1761235023749,0.46251305,110110.0,110100.0,0.1474583]
[1761235023946,0.43903764,110110.0,110100.0,0.1474583]
[1761235025248,0.46351305,110110.0,110100.0,0.1474583]
[1761235026357,0.0908083,110100.0,110090.0,0.15721018]
[1761235026551,0.43324584,110100.0,110090.0,0.15721018]
[1761235026765,0.43324584,110100.0,110090.0,0.1480865]
[1761235026954,0.45772125,110100.0,110090.0,0.1480865]
[1761235027654,0.45872125,110100.0,110090.0,0.1480865]
[1761235028254,0.49138616,110100.0,110090.0,0.1480865]
[1761235028556,0.81230616,110100.0,110090.0,0.1480865]
[1761235029054,0.81230616,110100.0,110090.0,0.01326]
[1761235029249,0.0908165,110090.0,110080.0,0.06644593]
[1761235029443,0.45772945,110090.0,110080.0,0.06644593]
[1761235029649,0.43325404,110090.0,110080.0,0.15727073]
[1761235032756,0.25427006,110090.0,110080.0,0.15727073]
[1761235032953,0.27874547,110090.0,110080.0,0.15727073]
[1761235033661,0.27874547,110090.0,110080.0,0.05727]
[1761235033862,0.0908248,110080.0,110070.0,0.18099559]
[1761235034057,0.25427836,110080.0,110070.0,0.1484755]
[1761235034273,0.25427836,110080.0,110070.0,0.148483]
[1761235034461,0.27875377,110080.0,110070.0,0.148483]
[1761235035159,0.27875377,110080.0,110070.0,0.05765]
[1761235035357,0.76312733,110080.0,110070.0,0.03481]
[1761235035559,0.79579224,110080.0,110070.0,0.01364]
[1761235035758,0.77131683,110080.0,110070.0,0.01364]
[1761235036066,0.77131683,110080.0,110070.0,0.05765]
[1761235036362,0.79579197,110080.0,110070.0,0.05765]
[1761235037066,0.79579197,110080.0,110070.0,0.148483]
[1761235038663,0.5996735,110080.0,110070.0,0.148483]
[1761235039560,0.76312706,110080.0,110070.0,0.05765]
[1761235040961,0.76312706,110080.0,110070.0,0.148483]
[1761235041167,0.5996735,110080.0,110070.0,0.148483]
[1761235042464,0.02447514,110080.0,110070.0,0.148483]
[1761235042663,0.25427836,110080.0,110070.0,0.148483]
[1761235042864,0.41772158,110080.0,110070.0,0.148483]
[1761235048567,0.41772158,110080.0,110070.0,0.05765]
[1761235048773,0.090833,110070.0,110060.0,0.15682608]
[1761235048973,0.27875503,110080.0,110070.0,0.148563]
[1761235049973,0.60565181,110080.0,110070.0,0.148563]
[1761235050570,0.60565181,110080.0,110070.0,0.05773]
[1761235050975,0.60565181,110080.0,110070.0,0.148563]
[1761235052872,0.60565181,110080.0,110070.0,0.05773]
[1761235053070,0.60565181,110080.0,110070.0,0.148563]
[1761235054067,0.60565181,110080.0,110070.0,0.05773]
[1761235054771,0.60565181,110080.0,110070.0,0.148563]
[1761235055074,0.60565181,110080.0,110070.0,0.05773]
[1761235055374,0.63831672,110080.0,110070.0,0.05773]
[1761235055869,0.63831672,110080.0,110070.0,0.0363]
[1761235056173,0.63831672,110080.0,110070.0,0.05773]
[1761235056373,0.62298259,110080.0,110070.0,0.05773]
[1761235056768,0.71381409,110080.0,110060.0,0.05667]
[1761235056962,0.1068213,110060.0,110050.0,0.05667]
[1761235057166,0.1068295,110050.0,110040.0,0.05667]
[1761235057366,0.45820196,110050.0,110040.0,0.05667]
[1761235057566,0.77912196,110050.0,110040.0,0.05667]
[1761235057768,0.1068378,110040.0,110030.0,0.05773]
[1761235057969,0.43373458,110040.0,110030.0,0.05773]
[1761235058467,0.43373458,110040.0,110030.0,0.15766792]
[1761235058874,0.43373458,110040.0,110030.0,0.05773]
[1761235059075,0.43373458,110040.0,110030.0,0.1485961]
[1761235059275,0.43473458,110040.0,110030.0,0.1485961]
[1761235059868,0.43473458,110040.0,110030.0,0.15781723]
[1761235060063,0.33588678,110040.0,110030.0,0.32781723]
[1761235060270,0.16444839,110040.0,110030.0,1.21218562]
[1761235060478,0.43473458,110040.0,110030.0,0.47873723]
[1761235061576,0.43373458,110040.0,110030.0,0.47873723]
[1761235061979,0.43373458,110040.0,110030.0,0.15781723]
[1761235062369,0.43473458,110040.0,110030.0,0.15781723]
[1761235062572,0.32789678,110040.0,110030.0,0.32781723]
[1761235062777,0.16444839,110040.0,110030.0,0.55781723]
[1761235063474,0.41875458,110040.0,110030.0,0.55781723]
[1761235063672,0.32789678,110040.0,110030.0,0.55781723]
[1761235064478,0.32689678,110040.0,110030.0,0.55781723]
[1761235064675,0.32689678,110040.0,110030.0,0.65781723]
[1761235064876,0.33488678,110040.0,110030.0,0.65781723]
[1761235065076,0.43373458,110040.0,110030.0,0.65781723]
[1761235065377,0.43473458,110040.0,110030.0,0.65781723]
[1761235066074,0.1068378,110040.0,110030.0,0.65781723]
[1761235066279,0.43473458,110040.0,110030.0,0.65781723]
[1761235066964,0.34387678,110040.0,110030.0,0.55781723]
[1761235067169,0.34387678,110040.0,110030.0,0.88781723]
[1761235067571,0.43473458,110040.0,110030.0,0.65781723]
[1761235068681,0.43373458,110040.0,110030.0,0.65781723]
[1761235068976,0.43473458,110040.0,110030.0,0.65781723]
[1761235069477,0.43473458,110040.0,110030.0,0.88781723]
[1761235069675,0.34387678,110040.0,110030.0,0.85781723]
[1761235069880,0.43473458,110040.0,110030.0,0.44781723]
[1761235070074,0.43473458,110040.0,110030.0,0.15781723]
[1761235070781,0.43373458,110040.0,110030.0,0.06695113]
[1761235071077,0.59818297,110040.0,110030.0,0.05773]
[1761235071285,0.91914297,110040.0,110030.0,0.05773]
[1761235071578,0.91814297,110040.0,110030.0,0.05773]
[1761235071786,0.91914297,110040.0,110030.0,0.05773]
[1761235072368,0.91914297,110040.0,110020.0,0.07137064]
[1761235072574,0.34287678,110030.0,110020.0,0.07137064]
[1761235072882,0.34287678,110030.0,110020.0,0.16224504]
[1761235073469,0.34287678,110030.0,110020.0,0.07137064]
[1761235074283,0.50632517,110030.0,110020.0,0.06227442]
[1761235074581,0.34287678,110030.0,110020.0,0.06227442]
[1761235075282,0.34287678,110030.0,110020.0,0.15314872]
[1761235077086,0.17942839,110030.0,110020.0,0.15314872]
[1761235077584,0.34287678,110030.0,110020.0,0.15314872]
[1761235078081,0.43374278,110030.0,110020.0,0.15314872]
[1761235078286,0.43374288,110030.0,110020.0,0.15314872]
[1761235078478,0.43374288,110030.0,110020.0,0.06227442]
[1761235078783,0.43374288,110030.0,110020.0,0.15314872]
[1761235080480,0.34287678,110030.0,110020.0,0.15314872]
[1761235080687,0.43374288,110030.0,110020.0,0.15314872]
[1761235084383,0.3673275,110030.0,110020.0,0.15314872]
[1761235084788,0.4581935,110030.0,110020.0,0.15314872]
[1761235087389,0.7791935,110030.0,110020.0,0.15314872]
[1761235088391,0.4581935,110030.0,110020.0,0.15314872]
[1761235088586,0.7791935,110030.0,110020.0,0.15314872]
[1761235091195,0.1068626,110010.0,110000.0,0.09211009]
[1761235091490,0.77925428,110010.0,110000.0,0.05959]
[1761235092296,0.94270267,110010.0,110000.0,0.05959]
[1761235092487,0.95270267,110010.0,110000.0,0.05959]
[1761235092688,0.82191919,110010.0,110000.0,0.05959]
[1761235093091,0.96087268,110010.0,110000.0,0.06059]
[1761235093394,0.82190438,110010.0,110000.0,0.06259]
[1761235093594,0.98535277,110010.0,110000.0,0.06259]
[1761235093795,0.98635277,110010.0,110000.0,0.05959]
[1761235094998,0.82290438,110010.0,110000.0,0.05959]
[1761235095299,0.50190438,110010.0,110000.0,0.1504809]
[1761235095592,0.49190438,110010.0,110000.0,0.05959]
[1761235095793,0.81290438,110010.0,110000.0,0.05959]
[1761235095996,0.81290438,110010.0,110000.0,0.1504809]
[1761235096689,0.78023947,110010.0,110000.0,0.1504809]
[1761235096890,0.61679108,110010.0,110000.0,0.1504809]
[1761235097294,0.78023947,110010.0,110000.0,0.1504809]
[1761235097489,0.45923947,110010.0,110000.0,0.1504809]
[1761235098289,0.45923947,110010.0,110000.0,0.1504808]
[1761235098798,0.45823947,110010.0,110000.0,0.1504808]
[1761235098995,0.78023947,110010.0,110000.0,0.1504808]
[1761235099594,0.45923947,110010.0,110000.0,0.1504808]
[1761235103096,0.13234269,110010.0,110000.0,0.1504808]
[1761235103301,0.27131099,110010.0,110000.0,0.1504808]
[1761235103490,0.43475938,110010.0,110000.0,0.1504808]
[1761235104602,0.27131099,110010.0,110000.0,0.1504808]
[1761235104805,0.43520074,110010.0,110000.0,0.1504808]
[1761235107104,0.1078626,110010.0,110000.0,0.1504808]
[1761235107401,0.43520074,110010.0,110000.0,0.1504808]
[1761235108303,0.1078626,110010.0,110000.0,0.1504808]
[1761235108609,0.45968083,110010.0,110000.0,0.1504808]
[1761235119707,0.13234269,110010.0,110000.0,0.1504808]
[1761235120012,0.45968083,110010.0,110000.0,0.1504808]
[1761235120309,0.49234574,110010.0,110000.0,0.1504808]
[1761235120703,0.49234574,110010.0,110000.0,0.1141708]
[1761235120905,0.49234574,110010.0,110000.0,0.04455]
[1761235121507,0.49234574,110010.0,110000.0,0.05821]
[1761235122110,0.46786565,110010.0,110000.0,0.1491008]
[1761235122310,0.46786565,110010.0,110000.0,0.05821]
[1761235123010,0.46786565,110010.0,110000.0,0.1491008]
[1761235124210,0.46786565,110010.0,110000.0,0.05821]
[1761235124810,0.14052751,110010.0,110000.0,0.05821]
[1761235125003,0.46786565,110010.0,110000.0,0.05821]
[1761235125203,0.45973597,110010.0,110000.0,0.05821]
[1761235126311,0.49240088,110010.0,110000.0,0.05821]
[1761235126510,0.49240088,110010.0,110000.0,0.1491008]
[1761235126706,0.49240088,110010.0,110000.0,0.05821]
[1761235126911,0.49240088,110010.0,110000.0,0.1491008]
[1761235127111,0.49140088,110010.0,110000.0,0.1491008]
[1761235127311,0.49240088,110010.0,110000.0,0.1491008]
[1761235128511,0.49140088,110010.0,110000.0,0.1491008]
[1761235128811,0.49240088,110010.0,110000.0,0.1491008]
[1761235129804,0.49240088,110010.0,110000.0,0.05821]
[1761235135109,0.46786565,110010.0,110000.0,0.05821]
[1761235135520,0.51700388,110010.0,110000.0,0.05821]
[1761235137517,0.51700388,110010.0,110000.0,0.02328]
[1761235137820,0.1068709,110000.0,109990.0,0.05755]
[1761235138020,0.64876426,110000.0,109990.0,0.05755]
[1761235138422,0.1068791,109990.0,109980.0,0.18462919]
[1761235138618,0.45875747,109990.0,109980.0,0.0612017]
[1761235138818,0.45875747,109990.0,109980.0,0.1521091]
[1761235139218,0.49147992,109990.0,109980.0,0.1521091]
[1761235139418,0.45875747,109990.0,109980.0,0.1521091]
[1761235140323,0.45875747,109990.0,109980.0,0.0046117]
[1761235140724,0.1068874,109980.0,109970.0,0.18900043]
[1761235140926,0.43422554,109980.0,109970.0,0.18900043]
[1761235141221,0.45876577,109980.0,109970.0,0.01326]
[1761235141423,0.45876577,109980.0,109970.0,0.1480255]
[1761235141924,0.45884184,109980.0,109970.0,0.1480255]
[1761235142822,0.45884184,109980.0,109970.0,0.3080255]
[1761235143124,0.45884184,109980.0,109970.0,0.1480255]
[1761235143326,0.43430161,109980.0,109970.0,0.1480255]
[1761235143732,0.75526161,109980.0,109970.0,0.1480255]
[1761235144420,0.66435421,109980.0,109970.0,0.1480255]
[1761235144617,0.17972514,109980.0,109970.0,0.1480255]
[1761235144821,0.16374514,109980.0,109970.0,0.4480255]
[1761235145017,7.607e-05,109980.0,109970.0,1.1689855]
[1761235146028,7.607e-05,109980.0,109970.0,1.20150559]
[1761235146630,0.16374514,109980.0,109970.0,1.20150559]
[1761235148440,0.16374514,109980.0,109970.0,1.20250559]
[1761235148636,7.607e-05,109980.0,109970.0,1.20250559]
[1761235149041,7.607e-05,109980.0,109970.0,1.20150559]
[1761235150146,7.607e-05,109980.0,109970.0,0.80150559]
[1761235151639,7.607e-05,109980.0,109970.0,0.80250559]
[1761235152645,0.34339421,109980.0,109970.0,0.47154559]
[1761235152847,0.34339421,109980.0,109970.0,0.47054559]
[1761235153146,0.43430151,109980.0,109970.0,0.4380255]
[1761235154943,0.43430151,109980.0,109970.0,0.1480255]
[1761235155149,0.43430151,109980.0,109970.0,0.05711]
[1761235155353,0.1068956,109970.0,109960.0,0.47792103]
[1761235155551,0.27056467,109970.0,109960.0,0.47792103]
[1761235157751,0.17964907,109970.0,109960.0,0.47892103]
[1761235158143,0.17964907,109970.0,109960.0,0.57892103]
[1761235158350,0.17964907,109970.0,109960.0,0.81892103]
[1761235159253,0.27056467,109970.0,109960.0,0.81892103]
[1761235159450,0.27056467,109970.0,109960.0,0.49800103]
[1761235160051,0.27056467,109970.0,109960.0,0.43800103]
[1761235160354,0.27056467,109970.0,109960.0,0.15800583]
[1761235160558,0.1068956,109970.0,109960.0,0.15800583]
[1761235160743,0.27056467,109970.0,109960.0,0.15800583]
[1761235163454,0.27056467,109970.0,109960.0,0.05811]
[1761235163956,0.85877397,109970.0,109960.0,0.001]
[1761235164160,0.89149642,109970.0,109960.0,0.01445057]
[1761235164347,0.1069122,109950.0,109940.0,0.09361782]
[1761235164551,0.42545428,109950.0,109940.0,0.06109773]
[1761235164751,0.42545428,109950.0,109940.0,0.15203823]
[1761235165352,0.84999451,109950.0,109940.0,0.00454773]
[1761235165551,0.84999451,109950.0,109940.0,0.02567773]
[1761235165956,0.84999451,109950.0,109940.0,0.02667773]
[1761235166648,0.68653396,109950.0,109940.0,0.15273813]
[1761235166848,0.85041155,109950.0,109940.0,0.00554773]
[1761235167154,0.82587132,109950.0,109940.0,0.06379773]
[1761235168362,1.14683132,109950.0,109940.0,0.06379773]
[1761235169462,1.17137155,109950.0,109940.0,0.06379773]
[1761235170054,1.17137155,109950.0,109940.0,0.15473813]
[1761235170861,1.14683132,109950.0,109940.0,0.15473813]
[1761235172463,0.42587132,109950.0,109940.0,0.15473813]
[1761235180666,0.26199373,109950.0,109940.0,0.15473813]
[1761235180868,0.42587132,109950.0,109940.0,0.15473813]
[1761235183670,0.34380806,109950.0,109940.0,0.15473813]
[1761235183869,0.43474016,109950.0,109940.0,0.15473813]
[1761235186669,0.43474016,109950.0,109940.0,0.06379773]
[1761235186875,0.43474016,109950.0,109940.0,0.15621813]
[1761235188276,0.45928039,109950.0,109940.0,0.15621813]
[1761235191275,0.49200284,109950.0,109940.0,0.15621813]
[1761235191473,0.45928039,109950.0,109940.0,0.15621813]
[1761235193181,0.49200284,109950.0,109940.0,0.15621813]
[1761235193381,0.46746261,109950.0,109940.0,0.15621813]
[1761235193771,0.37653051,109950.0,109940.0,0.15621813]
[1761235193976,0.04877533,109950.0,109940.0,0.15621813]